Cogmind - Beta 16 @@@ ROGUE MODE // 2025.11.02 @ 06:18:26 Player: lepire Result: Destroyed by D-53 Grenadier with Mini Grenade Launcher Performance ------------- Evolutions (0) 0 Regions Visited (2) 400 Robots Destroyed (31) 155 Value Destroyed (654) 654 Prototype IDs (5) 100 Alien Tech Used (0) 0 Bonus (0) 0 TOTAL SCORE: 1309 Bonus ------- None Cogmind --------- Core Integrity 0/250 Matter 300/300 Energy 100/100 System Corruption 3% Temperature Cool (0) Movement Core (1450) Ox28 Location -10/Mines Parts ------- > --- POWER (1) -------- (None) > --- PROPULSION (2) --- Light Treads > --- UTILITY (2) ------ Huge Storage Unit Light Armor Plating > --- WEAPON (2) ------- EM Pulse Gun > --- INVENTORY (25) --- Small Storage Unit Large Matter Pod (150) Visual Processing Unit Targeting Computer Light Armor Plating Trap Extractor (0/4) Trap Extractor (0/4) Grenade Launcher Mining Laser Peak State ------------ > --- POWER ------------ Ion Engine > --- PROPULSION ------- Light Treads Compact Wheel > --- UTILITY ---------- Huge Storage Unit Light Armor Plating > --- WEAPON ----------- EM Pulse Gun EM Pulse Gun > --- INVENTORY -------- Light Treads Small Storage Unit Large Matter Pod Targeting Computer Backup Plating I Trap Extractor Trap Extractor Grenade Launcher [Rating: 8] Favorites ----------- Power Ion Engine Engine Ion Engine Propulsion Light Treads Treads Light Treads Leg Aluminum Leg Wheel Compact Wheel Utility Huge Storage Unit Storage Huge Storage Unit Protection Light Armor Plating Weapon EM Pulse Gun Energy Gun EM Pulse Gun Ballistic Gun Assault Rifle Launcher Grenade Launcher Build | -11 -10 -10 ------- Run | Yrd Mat Min Slots Evolved . | . . . Power . | . . . Propulsion . | . . . Utility . | . . . Weapon . | . . . Parts Attached 17 | 2 10 5 Power 2 | . 1 1 Engine 2 | . 1 1 Core . | . . . Reactor . | . . . Propulsion 6 | 2 2 2 Treads 3 | 1 1 1 Leg . | . . . Wheel 3 | 1 1 1 Hover . | . . . Flight . | . . . Utility 4 | . 2 2 Device . | . . . Storage 1 | . 1 . Processor . | . . . Hackware . | . . . Protection 3 | . 1 2 Artifact . | . . . Weapon 5 | . 5 . Energy Gun 3 | . 3 . Energy Cannon . | . . . Ballistic Gun 1 | . 1 . Ballistic Cannon . | . . . Launcher 1 | . 1 . Special Weapon . | . . . Impact Weapon . | . . . Slashing Weapon . | . . . Piercing Weapon . | . . . Special Melee Weapon . | . . . Unidentified Prototypes . | . . . Corrupted Parts 1 | . . 1 System Corruption 1 | . . 1 Parts Lost 10 | . 2 8 Power 3 | . 1 2 Propulsion 4 | . 1 3 Utility 2 | . . 2 Weapon 1 | . . 1 Highest Loss Streak 5 | . 2 5 To Critical Strikes . | . . . Average Backups 7 | 6 6 10 Power . | 1 . . Propulsion 1 | 4 1 . Utility 5 | . 4 8 Weapon 1 | 1 1 2 Tool/Special . | . . . Unused Backups 12 | . 4 8 Power . | . . . Propulsion . | . . . Utility 7 | . . 7 Weapon 5 | . 4 1 Tool/Special . | . . . Average Slot Usage (%) 94 | . 98 79 Engine 12 | . 13 10 Treads 13 | . 14 13 Wheel 12 | . 13 7 Storage 14 | . 14 14 Protection 13 | . 13 14 Energy Gun 22 | . 23 17 Ballistic Gun 3 | . 4 . Peak Build Rating 8 | 6 8 8 Average Rating 7 | 6 7 6 On Entrance 6 | 6 6 8 Avg Prop Armor Cover (%) 9 | . 9 9 Naked Turns . | . . . Heaviest Build 92 | 13 92 92 Greatest Support 20 | 20 20 20 Greatest Overweight (x) 28 | . 5 28 Average Overweight (x) 5 | . 4 6 Largest Inventory Capacity 25 | 8 25 25 Average Capacity 24 | 8 24 25 Most Carried 12 | 6 12 12 Average Carried 7 | 5 6 10 Final Capacity 25 | 8 25 25 Final Carried 12 | 4 12 9 Class Distribution -------------------- 100% | Mutant Dominant Class ---------------- Mutant | -10/Materials Mutant | -10/Mines Resources | -11 -10 -10 ----------- Run | Yrd Mat Min Matter Collected 848 | 220 392 236 Remotely . | . . . Salvage Created 1021 | . 864 157 Parts 58 | . 52 6 Haulers Intercepted 2 | . 2 . Recyclers Shooed . | . . . Parts Field Recycled . | . . . Retrieved Matter . | . . . Parts Self-Destructed . | . . . Prevented . | . . . Parts Restored . | . . . Kills | -11 -10 -10 ------- Run | Yrd Mat Min Combat Hostiles Destroyed 38 | . 20 18 Guns 15 | . 14 1 AOE 23 | . 6 17 Classes Destroyed 8 | . 6 2 Worker 2 | . . 2 Hauler 2 | . 2 . Recycler 1 | . 1 . Operator 1 | . 1 . Watcher 3 | . 3 . Swarmer 9 | . 9 . Grunt 13 | . 11 2 Assembled 16 | . . 16 Best Kill Streak 13 | . 5 13 Combat Bots Only 13 | . 5 13 Max Kills in Single Turn 5 | . 3 5 Gunslinging . | . . . Exploded 5 | . 3 5 Melee . | . . . Uniques/NPCs Destroyed . | . . . Combat | -11 -10 -10 -------- Run | Yrd Mat Min Hostile Shots Fired 134 | . 94 40 Missed 39 | . 31 8 Hits 95 | . 63 32 Melee 4 | . . 4 Projectile 91 | . 63 28 AOE 13 | . . 13 Critical Strikes 1 | . 1 . Part Disruptions 1 | . . 1 Damage Taken 1530 | . 663 867 Core 300 | . 82 218 Absorbed by Shields . | . . . Core Remaining (%) 100 | 100 . . Volleys Fired 99 | . 76 23 Largest 2 | . 2 2 Hottest 80 | . 80 80 Shots Fired 176 | . 151 25 Gun 162 | . 150 12 Cannon . | . . . Launcher 14 | . 1 13 Special . | . . . Kinetic 44 | . 44 . Thermal 44 | . 44 . Explosive 14 | . 1 13 Electromagnetic 74 | . 62 12 Robot Hit Streak 12 | . 12 6 Robot Miss Streak 9 | . 9 4 Penetration Max . | . . . Secondary Targets 1 | . 1 . Max Gunslinging Chain 1 | . 1 . Shots Hit Robots 105 | . 93 12 Core Hits 72 | . 36 36 Critical Kills . | . . . Critical Parts Destroyed . | . . . Critical Strikes . | . . . Melee Attacks . | . . . Impact . | . . . Slashing . | . . . Piercing . | . . . Sneak Attacks . | . . . Combat Hostiles . | . . . Follow-up Attacks . | . . . Damage Inflicted 2514 | . 1577 937 Guns 1348 | . 1277 71 Cannons . | . . . Explosions 1166 | . 300 866 Melee . | . . . Ramming . | . . . Kinetic 363 | . 363 . Thermal 555 | . 555 . Explosive 970 | . 104 866 Electromagnetic 626 | . 555 71 Impact . | . . . Slashing . | . . . Piercing . | . . . Highest Corruption 3 | . . 3 Average Corruption 2 | . . 2 Corruption Purged . | . . . Corruption Blocked . | . . . Effects 8 | . . 8 Message Errors 4 | . . 4 Matter Fused 4 | . . 4 Overload Shots . | . . . Overflow Damage 8 | . . 8 Projectiles . | . . . Explosions 8 | . . 8 Melee . | . . . Knockbacks . | . . . Impact . | . . . Kinetic . | . . . Secondary . | . . . Self-Inflicted Damage 87 | . 8 79 Shots 5 | . 1 4 Rammed . | . . . Targets Rammed . | . . . Kicked . | . . . Crushed . | . . . Highest Temperature 182 | . 182 59 Average Temperature 47 | . 51 22 Received Heat Transfer 370 | . 234 136 Siege Activations . | . . . Martial Activations . | . . . Shielding Activations . | . . . Robots Disrupted . | . . . Combat Hostiles . | . . . Robots Corrupted . | . . . Combat Hostiles . | . . . Parts Fried 3 | . 3 . Impact Corruptions . | . . . Robots Melted . | . . . Combat Hostiles . | . . . Parts Melted 1 | . 1 . Heat Transferred 1046 | . 1046 . Parts Sabotaged . | . . . Parts Stolen . | . . . Parts Stripped . | . . . Power Chain Reactions 5 | . 5 . Alert | -11 -10 -10 ------- Run | Yrd Mat Min Maximum Alert Level 1 | . 1 . Low Security (%) 67 | 100 58 100 Level 1 32 | . 41 . Level 2 . | . . . Level 3 . | . . . Level 4 . | . . . Level 5 . | . . . High Security . | . . . Max Security . | . . . Peak Influence 281 | . 281 93 Initial 93 | . . 93 Average 120 | . 146 30 Influence Increases 841 | . 729 112 Destroy 0b10 Robot/C 440 | . 400 40 Destroy 0b10 Robot/NC 45 | . 35 10 Destroy Leader 100 | . 90 10 Successful Hack 51 | . 51 . Select Force Hacks 60 | . 60 . Disable Machine 30 | . 15 15 Destroy Structure 70 | . 33 37 Lose Combat Pursuer 45 | . 45 . Influence Decreases 841 | . 488 353 Entered New Map 148 | . . 148 Time Decay 643 | . 488 155 Lost Part 50 | . . 50 Squads Dispatched 4 | . 4 . Investigation 2 | . 2 . Extermination . | . . . Reinforcement 2 | . 2 . Assault . | . . . Garrison . | . . . Intercept . | . . . Searches Triggered . | . . . Construction Impeded . | . . . Haulers Reinforced . | . . . Active Scanning Responses . | . . . Cargo Convoy Interrupts . | . . . Stealth | -11 -10 -10 --------- Run | Yrd Mat Min Distress Signals 1 | . 1 . Communications Jammed . | . . . Distress Signals . | . . . Times Spotted 51 | . 32 19 Peak Tracking Total 10 | . 4 10 Tactical Retreats 1 | . 1 . Traps | -11 -10 -10 ------- Run | Yrd Mat Min Traps Triggered . | . . . Indirectly . | . . . Trap Hack Attempts . | . . . Triggered . | . . . Disarmed . | . . . Reprogrammed . | . . . Reused . | . . . Traps Extracted . | . . . Installed . | . . . Triggered . | . . . Machines | -11 -10 -10 ---------- Run | Yrd Mat Min Machines Disabled 2 | . 1 1 Max in Single Turn 1 | . 1 1 Machines Repaired . | . . . Machines Dismantled . | . . . Machines Sabotaged . | . . . Overloaded Fab Kills . | . . . Hacking | -11 -10 -10 --------- Run | Yrd Mat Min Machines Accessed 10 | . 10 . Terminals 7 | . 7 . Fabricators . | . . . Repair Stations 1 | . 1 . Recycling Units 2 | . 2 . Scanalyzers . | . . . Garrison Access . | . . . Total Hacks 24 | . 24 . Successful 18 | . 18 . Failed 6 | . 6 . Catastrophic . | . . . Database Lockouts . | . . . Manual 14 | . 14 . Terminals 20 | . 20 . Fabricators . | . . . Repair Stations 1 | . 1 . Recycling Units 3 | . 3 . Scanalyzers . | . . . Garrison Access . | . . . Terminal Hacks 11 | . 11 . Robot Analysis 3 | . 3 . Prototype ID Bank 2 | . 2 . Branch Access Points 2 | . 2 . Locate Traps 3 | . 3 . Hauler Manifests 1 | . 1 . Fabricator Hacks . | . . . Repair Station Hacks 1 | . 1 . Refit 1 | . 1 . Recycling Unit Hacks 1 | . 1 . Report Inventory 1 | . 1 . Scanalyzer . | . . . Garrison Access Hacks . | . . . Unauthorized Hacks 5 | . 5 . Terminals 3 | . 3 . Botnet 3 | . 3 . Fabricators . | . . . Repair Stations . | . . . Recycling Units 2 | . 2 . Tunnel 2 | . 2 . Scanalyzers . | . . . Garrison Access . | . . . Data Cores Recovered . | . . . Used . | . . . Hacking Detections 6 | . 6 . Full Trace Events . | . . . Feedback Events . | . . . Feedback Blocked . | . . . Robot Schematics Acquired . | . . . Robots Built . | . . . Authchips . | . . . Time . | . . . Total Robot Build Rating . | . . . Part Schematics Acquired . | . . . Parts Built . | . . . Authchips . | . . . Time . | . . . Total Part Build Rating . | . . . Part Studies Acquired . | . . . Parts Repaired . | . . . Time . | . . . Parts Recycled . | . . . Recycled Matter . | . . . Retrieved Matter . | . . . Retrieved Components . | . . . Parts Scanalyzed . | . . . Part Schematics Acquired . | . . . Parts Damaged . | . . . Bothacking | -11 -10 -10 ------------ Run | Yrd Mat Min Used RIF Installer . | . . . Robots Hacked . | . . . Non-combat . | . . . Combat . | . . . Robot Hacks Applied . | . . . Relay Couplers Released . | . . . Fabnet Peak Effective % . | . . . Robots Rewired . | . . . Allies Hacked . | . . . Hacks Repelled . | . . . Allies | -11 -10 -10 -------- Run | Yrd Mat Min Total Allies 1 | . . 1 Largest Group 1 | . . 1 Highest-Rated Group 31 | . . 31 Highest-Rated Ally 31 | . . 31 Total Orders . | . . . Ally Attacks 2 | . . 2 Total Damage 43 | . . 43 Kills . | . . . Allies Corrupted . | . . . Allies Melted . | . . . Intel | -11 -10 -10 ------- Run | Yrd Mat Min Active Infowar (turns) . | . . . Robot Analysis Total 3 | . 3 . Derelict Logs Recovered 1 | . . 1 Drone Launches . | . . . Drone Recoveries . | . . . Exploration | -11 -10 -10 ------------- Run | Yrd Mat Min Turns Passed 2414 | 5 1890 519 Spaces Moved 1101 | 1 918 182 Core 1 | . . 1 Treads 73 | 1 37 35 Legs . | . . . Wheels 1027 | . 881 146 Hover . | . . . Flight . | . . . Fastest Speed 160 | 160 160 175 Average Speed 187 | 160 175 250 Slowest Speed 1450 | 160 480 1450 Overloaded Moves . | . . . Propulsion Burnouts . | . . . Robots Hopped . | . . . Potential Cave-ins . | . . . Cave-ins Triggered . | . . . Exploration Rate (%) 47 | 1 98 42 Regions Visited 2 Branch Regions 1 Pre-discovered Areas 2 | . 2 . Known Exits Taken 1 | . 1 . Unknown Exits Taken 1 | 1 . . Scrap Searched 2 | . . 2 Spaces Dug . | . . . Terrain Destroyed 100 | . 30 70 Melee . | . . . Projectile . | . . . AOE 100 | . 30 70 Terrain Rammed . | . . . Walls Destroyed . | . . . Machines Disabled . | . . . Actions | -11 -10 -10 --------- Run | Yrd Mat Min Total 1272 | 4 1045 223 Wait 33 | . 26 7 Move 1099 | . 917 182 Hop . | . . . Pick Up 10 | . 10 . Fast Attach 3 | . 1 2 Attach 5 | . 2 3 Detach 1 | . 1 . Swap 16 | 2 8 6 Drop 6 | 2 4 . Fire 99 | . 76 23 Melee . | . . . Ram . | . . . Kick . | . . . Crush . | . . . Escape Stasis . | . . . Rewire . | . . . Trap . | . . . Miscellaneous . | . . . Route ------- -11/Scrapyard -10/Materials (discovered 4 exits: [*Mat x3] / *Min) -10/Mines (discovered 1 exit: [*Mat]) History --------- Turn | Location | Event 6 | -11/Scrapyard | Discovered new exit (range 0) 6 | -11/Scrapyard | Entered Materials 222 | -10/Materials | Discovered new exit (range 14) 311 | -10/Materials | Build established: Mutant 801 | -10/Materials | Identified exit to Mines 872 | -10/Materials | Discovered new exit (range 5) 1055 | -10/Materials | Discovered new exit (range 8) 1896 | -10/Materials | Entered Mines 1947 | -10/Mines | Discovered new exit (range 14) 1955 | -10/Mines | Assembled infested the area 2051 | -10/Mines | Core integrity fell below 50% 2080 | -10/Mines | Destroyed 13 combat bots 2084 | -10/Mines | Lost 5 parts (1p2n1u1w) 2106 | -10/Mines | Core integrity fell below 20% 2278 | -10/Mines | Learned Materials interactive machine intel 2309 | -10/Mines | Met a Derelict testing a Signal Generator 2415 | -10/Mines | Destroyed by D-53 Grenadier with Mini Grenade Launcher Last Messages --------------- exhausted. 02352_ Acquired 6 matter. 02381_ U-05 Engineer builds a Wall. 02384_ VW,T|SZ EBN:H7VSA7>42U5AEU8QB 02385_ U-05 Engineer lays Concrete. 02388_ U-05 Engineer builds a Wall. 02395_ D-53 Grenadier: "LOCATED POTENTIAL SOURCE OF ANOMALOUS SIGNAL. NEUTRALIZING." 02396_ UR-4CQ(g): "Looks like the friends we called actually did show up to play. Couldn't you guys just take that other tunnel?" 02397_ U-05 Engineer lays Concrete. 02399_ U-05 Engineer builds a Wall. 02399_ UR-4CQ(g) destroyed. 02399_ U-05 Engineer destroyed. 02405_ The unstable cave ceiling collapses. 02406_ Lgt. Armor Plating destroyed. 02408_ Lgt. Ion Engine destroyed. 02408_ Wheel destroyed. 02409_ CJDU&DOKX%FT&RZ ,MRS0VRNCBVXRN/ Map ----- +----------------------------------------------------+ | #?# #????????????????????????????????????? | | #### ##????????????????????????????????????? | | #### ##?????????????????????????????????????? | | #?## ##??????????????????????????????????????? | | #### ###########???????? #???????????????????? | | ## ????? ???????????????????? | | ????? ???????????????????? | | ############??????? ???????????????????? | | ####??????????????????# ???????????????????? | | ####????????????????????## ???????????????????? | | ##????????????????????### ???????????????????? | | #???????????????????## ???????????????????? | | #???????????????????# %???????????????????? | | # #???????????????????# %###?????????????????? | | # #???????????????????# #?????????????????? | | # #??????????????????## #?????????????????? | | # #?????????????????## ##????????????????? | | # #?????????????????# #????????????????? | | # #?????????????????# d ###??????????????? | | # #??????????????????# %[ #??????????????? | | # #??????????????????#### d #??????????????? | | #% #???????????????#### #??????????????? | | #% ##?????????????## #???????????????? | | ##????????????# ##??????????????? | | < #???????????## #??????????????? | | #?????????### @ #??????????????? | | ##????????## ##??????????????? | | ##?????????# < ##???????????????? | | ##????????## % ##????????????????? | | ###?????## %## #?????????????????? | | ###???# # #### ##?????????????????? | | ###### ! |# #### ##?????????????????? | | # # # # % #?????????????????? | | "" ## ## ### ####### #????????????????? | | """ ! # # # #?????# #???????????????? | | """ # #?????## ##???????????????? | | # # ##?????#####????????????????? | | ## #### ## ### ##?????????????????????????? | | ?##### # ##?# ##????????????????????????? | | ?????###### # #??# ##???????????????????????? | | ?????????# ###??## ##??????????????????????? | | ?????????#####????## ##?????????????????????? | | ?????????????????## #?????????????????????? | | ????????????????## #?????????????????????? | | ???????????????## ##?????????????????????? | | ??????????????## #####??????????????????????? | | ?????????## ## ##??????????????????????????? | | ?????????# #???????????????????????????? | | ?????????# #??????????????????????????? | | ????????# #??????????????????????????? | +----------------------------------------------------+ Best States ------------- Heat Dissipation 25 Energy Generation 10 Energy Capacity 250 Matter Stores 300 Matter Capacity 300 Sight Range 16 Terrain Scan Density 10 Armor Coverage 150 Evasion (%) 40 Recoil Reduction 1 Item Schematics ----------------- None Robot Schematics ------------------ None Fabricated ------------ Nothing Repaired ---------- Nothing Studied --------- None Alien Tech Used ----------------- None Achievements -------------- None Challenges ------------ None Game ------ Seed TerrabombScatterMatterbank Manual? 0 Play Time 00:14:47 Cumulative 87.8 hours Start 2025.11.02 @ 06:03:48 End 2025.11.02 @ 06:18:26 Sessions 1 Manual Loads 0 Difficulty Rogue Special Mode None Game No. 100 Rogue 70 Adventurer 30 Explorer 0 Win Type - Total 1 Types 1/0/0/0/0/0/0/0/0/0 Lore% 46 Gallery% 41 Achievement% 28 Wizard Run 0 Options --------- Layout 2 ASCII 0 Keyboard 1 Movement Arrows Keybinds 0 Fullscreen 1 Font 24/Smallcaps Map View 50x44 Zoom Use 0% Tactical HUD 1 Map Filters NONE Filters NONE Steam 1 RUN: e1683b43-face-4aa9-b1c3-5ca439f90bc4